bitfinex/quotes_ETHUSD_20250526
["timestamp","ask_amount","ask_price","bid_price","bid_amount"]
[1748240962409,0.55645303,2566.6,2566.0,4.075]
[1748240962705,0.57300381,2566.5,2566.0,4.075]
[1748240964041,5.17358505,2566.7,2566.0,4.075]
[1748240964243,0.36374759,2566.6,2566.0,4.075]
[1748240965038,0.36374759,2566.6,2566.1,0.4715]
[1748240965544,0.36374759,2566.5,2566.1,0.4715]
[1748240966262,0.36374759,2566.4,2566.1,0.4715]
[1748240967660,5.17358505,2566.7,2566.1,0.4715]
[1748240967853,0.55645303,2566.6,2566.1,0.4715]
[1748240968535,0.36371686,2566.5,2566.1,0.4715]
[1748240969362,0.36371686,2566.4,2566.1,0.4715]
[1748240971034,1.17304123,2566.7,2566.1,0.4715]
[1748240971959,0.36372535,2566.6,2566.1,0.4715]
[1748240972637,0.36372535,2566.5,2566.1,0.4715]
[1748240972952,0.36372535,2566.5,2566.1,8.0]
[1748240973139,0.36372535,2566.5,2566.2,0.46598452]
[1748240973331,0.36372535,2566.5,2566.3,0.4715]
[1748240973647,0.36372535,2567.1,2566.5,0.4715]
[1748240974852,2.35562467,2567.3,2566.5,0.4715]
[1748240975051,3.10370564,2567.3,2566.5,0.4715]
[1748240975249,2.70518635,2567.3,2566.5,0.4715]
[1748240975425,1.95710538,2567.3,2566.6,0.4715]
[1748240975625,0.37274123,2567.4,2566.8,0.4715]
[1748240975626,2.32984661,2567.4,2566.8,0.4715]
[1748240976230,1.95710538,2567.4,2566.8,0.4715]
[1748240979674,1.95710538,2567.4,2566.9,7.961]
[1748240979967,1.14976992,2567.6,2566.9,7.961]
[1748240983148,0.7869,2567.6,2566.9,7.961]
[1748240985175,0.74549233,2567.7,2567.0,0.4715]
[1748240985672,0.36286992,2567.7,2567.0,0.4715]
[1748240985871,0.36286992,2567.7,2567.2,0.4715]
[1748240986840,0.42274123,2567.9,2567.2,0.4715]
[1748240987465,0.05,2567.9,2567.2,0.4715]
[1748240994667,0.05,2567.9,2567.2,8.8685]
[1748240994991,0.05,2567.9,2567.2,8.397]
[1748240995286,0.05,2567.9,2567.3,0.4715]
[1748240998582,0.05,2567.9,2567.4,7.957]
[1748240998888,0.05,2567.9,2567.3,0.4715]
[1748240999190,0.05,2567.9,2567.5,7.957]
[1748241000092,0.05,2567.9,2567.3,0.4715]
[1748241000295,0.05,2567.9,2567.4,7.957]
[1748241002285,4.05054382,2567.9,2567.3,0.4715]
[1748241002595,1.16346992,2567.8,2567.4,7.957]
[1748241003698,0.36286992,2567.7,2567.4,7.957]
[1748241004901,0.8006,2567.8,2567.4,7.957]
[1748241006600,0.36341481,2567.7,2567.4,7.957]
[1748241007499,0.36341481,2567.7,2567.5,0.4715]
[1748241007666,0.05,2567.9,2567.5,0.4715]
[1748241008183,0.05,2567.9,2567.6,3.887]
[1748241008901,0.36346114,2567.8,2567.6,3.887]
[1748241009806,0.05,2567.9,2567.6,3.887]
[1748241010108,0.05,2567.9,2567.2,8.8685]
[1748241010401,4.00054382,2567.4,2567.3,4.07]
[1748241010576,4.00054382,2567.4,2567.3,7.957]
[1748241010905,0.36363092,2567.4,2567.3,7.957]
[1748241016420,0.36363092,2567.4,2566.7,0.4715]
[1748241016586,0.36363092,2567.4,2567.3,4.071]
[1748241016787,0.36363092,2567.4,2567.3,7.958]
[1748241017302,1.68026839,2567.4,2567.3,7.958]
[1748241017523,8.0,2567.3,2566.7,0.4715]
[1748241017827,8.0,2567.3,2566.6,8.396]
[1748241017828,8.0,2567.1,2566.8,4.071]
[1748241017989,8.0,2567.1,2566.9,3.887]
[1748241018322,8.0,2567.1,2566.8,4.071]
[1748241018323,1.12193092,2567.2,2567.0,3.887]
[1748241018515,0.91219309,2567.1,2567.0,3.887]
[1748241019227,10.02602401,2567.1,2567.0,7.958]
[1748241019720,1.11383092,2567.1,2567.0,7.958]
[1748241020222,1.11383092,2567.1,2567.0,4.071]
[1748241020534,1.11383092,2567.1,2567.0,7.958]
[1748241020822,0.36363092,2567.1,2567.0,7.958]
[1748241021024,0.36363092,2567.2,2567.0,7.958]
[1748241021429,1.2229415,2567.2,2567.0,7.958]
[1748241022102,0.85931058,2567.2,2567.0,7.958]
[1748241022507,0.8048,2567.3,2567.0,7.958]
[1748241022856,4.81024382,2567.5,2567.0,7.958]
[1748241023160,4.00054382,2567.3,2566.6,8.396]
[1748241023309,4.00054382,2567.3,2567.1,4.071]
[1748241023646,0.8223,2567.2,2566.6,8.396]
[1748241023958,0.8223,2566.9,2566.7,7.959]
[1748241024124,1.18517307,2566.9,2566.7,7.959]
[1748241024437,1.18517307,2566.9,2566.8,3.888]
[1748241025117,0.8223,2566.9,2566.8,3.888]
[1748241026744,0.8223,2566.9,2566.7,4.071]
[1748241026913,0.8223,2566.9,2566.8,3.888]
[1748241027113,1.38910013,2566.9,2566.6,8.396]
[1748241027313,1.38910013,2566.9,2566.7,7.959]
[1748241028349,1.7519732,2566.9,2566.7,7.959]
[1748241029109,0.36287307,2566.9,2566.7,7.959]
[1748241029749,0.8248,2567.1,2566.7,7.959]
[1748241031430,1.18767307,2567.1,2566.7,7.959]
[1748241032455,0.8248,2567.1,2566.7,7.959]
[1748241032625,1.19567307,2567.3,2566.7,7.959]
[1748241033224,1.75244178,2567.3,2566.7,7.959]
[1748241033938,0.36287307,2567.2,2566.7,7.959]
[1748241034339,0.36287307,2567.2,2566.8,3.888]
[1748241034738,0.36287307,2567.1,2566.8,3.888]
[1748241035552,0.36287307,2567.2,2566.8,3.888]
[1748241035869,4.00054382,2567.0,2566.9,7.959]
[1748241036173,4.00054382,2567.0,2566.6,8.396]
[1748241036346,4.00054382,2566.8,2566.7,7.959]
[1748241036581,5.36734382,2566.8,2566.7,4.071]
[1748241036784,5.36734382,2566.8,2566.7,7.959]
[1748241037164,5.73021689,2566.8,2566.7,7.959]
[1748241039257,1.17967307,2566.8,2566.7,7.959]
[1748241039792,2.53484178,2566.8,2566.7,7.959]
[1748241042477,1.71804178,2566.8,2566.7,7.959]
[1748241042683,0.36287307,2566.8,2566.7,7.959]
[1748241049573,0.36287307,2566.8,2566.7,4.071]
[1748241049904,0.36287307,2566.8,2566.7,7.96]
[1748241049905,1.49184327,2566.8,2566.7,7.96]
[1748241051187,1.12037307,2566.8,2566.7,7.96]
[1748241052521,1.49184327,2566.8,2566.7,7.96]
[1748241052725,2.04108198,2566.8,2566.7,7.96]
[1748241053184,0.36287307,2566.8,2566.7,7.96]
[1748241053797,1.17517307,2566.8,2566.7,4.071]
[1748241054003,1.17517307,2566.8,2566.7,7.96]
[1748241054522,1.72517307,2566.8,2566.6,8.396]
[1748241054734,1.72517307,2566.8,2566.7,7.96]
[1748241054940,5.93538122,2566.8,2566.7,7.96]
[1748241055107,5.93538122,2566.8,2566.6,8.396]
[1748241055294,5.93538122,2566.8,2566.7,4.071]
[1748241055489,13.93538122,2566.8,2566.7,7.96]
[1748241055723,14.30685142,2566.8,2566.7,7.96]
[1748241056030,14.30685142,2566.8,2566.7,4.071]
[1748241056190,14.30685142,2566.8,2566.7,7.96]
[1748241056720,14.77086639,2566.8,2566.7,7.96]
[1748241059139,14.30685142,2566.8,2566.7,7.96]
[1748241060745,14.30685142,2566.8,2566.7,4.071]
[1748241060931,14.30685142,2566.8,2566.7,7.96]
[1748241061519,14.77086639,2566.8,2566.7,7.96]
[1748241062567,14.30685142,2566.8,2566.7,7.96]
[1748241063812,8.9440076,2566.8,2566.7,7.96]
[1748241064021,9.19835824,2566.8,2566.7,7.96]
[1748241064485,1.19835824,2566.8,2566.7,7.96]
[1748241065966,0.73434327,2566.8,2566.7,7.96]
[1748241068634,0.73434327,2566.8,2566.7,8.4315]
[1748241069958,0.36287307,2566.8,2566.7,8.4315]
[1748241070570,0.3714702,2567.0,2566.7,8.4315]
[1748241073263,0.3714702,2567.0,2566.8,3.889]
[1748241073572,4.37201402,2567.0,2566.8,3.889]
[1748241075681,0.3714702,2567.0,2566.8,3.889]
[1748241076844,0.3714702,2567.1,2566.8,3.889]
[1748241077044,0.76254836,2567.1,2566.8,3.889]
[1748241077245,0.3714702,2567.1,2566.8,3.889]
[1748241080887,0.3714702,2567.1,2566.8,4.3605]
[1748241082092,0.76090336,2567.2,2566.8,4.3605]
[1748241082282,0.55799472,2567.1,2566.8,3.889]
[1748241082682,0.3714702,2567.2,2566.8,3.889]
[1748241083078,4.37201402,2567.1,2566.8,3.889]
[1748241083684,4.37201402,2567.1,2566.9,3.888]
[1748241084473,4.00054382,2567.1,2566.9,3.888]
[1748241085097,4.00054382,2567.1,2566.4,0.4715]
[1748241085297,4.00054382,2567.1,2567.0,4.071]
[1748241085502,4.93081177,2567.1,2567.0,7.959]
[1748241086807,5.48081177,2567.1,2566.4,0.4715]
[1748241086995,13.48081177,2567.1,2567.0,4.071]
[1748241087168,13.48081177,2567.1,2566.4,0.4715]
[1748241087169,8.0,2567.0,2566.4,0.4715]
[1748241087375,10.18782753,2567.0,2566.5,7.959]
[1748241087712,11.38129773,2567.0,2566.5,7.959]
[1748241089613,0.3714702,2566.9,2566.5,7.959]
[1748241092342,0.3714702,2566.9,2566.6,0.4715]
[1748241093034,0.3714702,2567.1,2566.6,0.4715]
[1748241093232,9.77263945,2567.1,2566.6,0.4715]
[1748241093534,5.77318327,2567.1,2566.7,3.888]
[1748241093726,4.37201402,2567.1,2566.7,3.888]
[1748241094080,0.3714702,2567.0,2566.7,3.888]
[1748241094577,0.3714702,2567.0,2566.5,4.071]
[1748241094794,0.3714702,2567.0,2566.8,3.888]
[1748241095815,0.3714702,2566.9,2566.8,3.888]
[1748241096122,0.3714702,2566.9,2566.8,7.957]
[1748241097313,1.6086716,2566.9,2566.4,0.4715]
[1748241097535,1.6086716,2566.9,2566.5,7.957]
[1748241097698,2.3907716,2566.9,2566.5,7.957]
[1748241098527,0.3714702,2566.8,2566.5,7.957]
[1748241099311,8.0,2566.5,2566.0,8.4]
[1748241099515,8.0,2566.5,2566.1,7.957]
[1748241100635,0.3714702,2566.4,2566.1,7.957]
[1748241100991,0.3714702,2566.4,2566.2,0.4715]
[1748241101741,0.3714702,2566.6,2566.2,0.4715]
[1748241102617,0.3714702,2566.5,2566.2,0.4715]
[1748241102860,0.3714702,2566.5,2566.1,7.957]
[1748241103450,0.3714702,2566.5,2566.0,8.8715]
[1748241103656,0.3714702,2566.5,2566.1,7.958]
[1748241104151,0.3714702,2566.6,2566.1,7.958]
[1748241105526,8.8109,2566.7,2566.1,7.958]
[1748241105527,0.3714702,2566.5,2566.1,7.958]
[1748241106555,0.3714702,2566.6,2566.1,7.958]
[1748241107183,0.3714702,2566.6,2566.2,0.4715]
[1748241107324,0.3714702,2566.6,2566.3,0.51046146]
[1748241107521,0.3714702,2566.8,2566.5,0.4715]
[1748241108475,0.3714702,2567.0,2566.5,0.4715]
[1748241109461,8.3714702,2567.1,2566.5,0.4715]
[1748241109760,9.92016849,2567.1,2566.5,0.4715]
[1748241110261,0.7881,2567.0,2566.5,0.4715]
[1748241110467,1.1595702,2567.0,2566.6,7.959]
[1748241110936,1.1595702,2567.0,2566.3,0.4715]
[1748241111143,5.16011402,2567.0,2566.4,7.959]
[1748241111449,0.7827,2566.8,2566.5,4.07]
[1748241111649,8.0,2566.7,2566.5,7.959]
[1748241112086,8.0,2566.7,2566.0,8.8715]
[1748241112287,8.0,2566.7,2566.6,4.07]
[1748241112605,10.30687727,2566.7,2566.6,7.959]
[1748241115069,0.7663,2566.6,2566.0,8.8715]
[1748241115266,8.0,2566.5,2566.1,7.959]
[1748241115674,8.3714702,2566.5,2566.1,7.959]
[1748241116398,8.3714702,2566.5,2566.2,7.959]
[1748241116596,9.87884231,2566.5,2566.2,7.959]
[1748241116766,9.87884231,2566.5,2566.2,4.07]
[1748241116970,8.7906,2566.3,2566.2,4.07]
[1748241117283,8.7906,2566.3,2566.2,7.959]
[1748241117900,8.7906,2566.3,2566.2,4.07]
[1748241118081,10.25759861,2566.3,2566.2,7.959]
[1748241118804,10.80759861,2566.3,2566.0,8.4]
[1748241119001,11.17906881,2566.3,2566.2,4.07]
[1748241119201,8.0,2566.1,2566.0,8.4]
[1748241119505,9.51796126,2566.1,2566.0,16.359]
[1748241119671,2.06796126,2566.1,2566.0,16.359]
[1748241119871,0.55,2566.1,2566.0,12.47]
[1748241120208,9.3038,2566.1,2566.0,8.4]
[1748241120395,9.3038,2566.1,2566.0,12.289]
[1748241120711,9.3038,2566.1,2566.0,3.889]
[1748241121281,9.6752702,2566.1,2566.0,3.889]
[1748241121466,11.0892531,2566.1,2566.0,3.889]
[1748241123784,1.3157,2565.9,2565.8,4.07]
[1748241123982,13.31624382,2565.9,2565.8,7.959]
[1748241124578,13.68771402,2565.9,2565.8,7.959]
[1748241125078,14.07844109,2565.9,2565.8,7.959]
[1748241125291,15.62768349,2565.9,2565.8,7.959]
[1748241128117,15.25621329,2565.9,2565.8,7.959]
[1748241129079,15.25621329,2565.9,2565.8,4.07]
[1748241129286,15.25621329,2565.9,2565.8,7.96]
[1748241129687,0.55,2565.5,2565.1,4.17]
[1748241129911,4.00054382,2565.3,2565.2,3.89]
[1748241130095,8.55,2565.2,2565.1,4.17]
[1748241130299,8.55,2565.2,2565.1,8.06]
[1748241130507,9.80505438,2565.2,2565.1,8.06]
[1748241132386,10.17567615,2565.2,2565.1,8.06]
[1748241132923,10.17567615,2565.2,2565.1,4.17]
[1748241133141,10.17567615,2565.2,2565.1,3.99]
[1748241134321,10.17567615,2565.2,2565.1,0.1]
[1748241135221,9.80505438,2565.2,2565.1,0.1]
[1748241135422,9.80505438,2565.2,2565.1,3.99]
[1748241135731,8.55,2565.2,2565.1,3.99]
[1748241138222,8.55,2565.2,2565.1,0.1]
[1748241138390,8.55,2565.2,2565.1,8.062]
[1748241138590,12.55054382,2565.2,2565.1,8.062]
[1748241140842,8.55,2565.2,2565.1,8.062]
[1748241141124,10.80605438,2565.2,2565.1,8.062]
[1748241142205,10.25605438,2565.2,2565.1,8.062]
[1748241143615,0.55,2565.6,2565.1,8.062]
[1748241143815,0.46401497,2565.7,2565.1,8.062]
[1748241144015,0.55,2565.6,2565.1,8.062]
[1748241144342,0.46401497,2565.7,2565.1,8.062]
[1748241144541,8.0,2565.7,2565.1,8.062]
[1748241144706,0.55,2565.6,2565.1,8.062]
[1748241146060,4.55054382,2565.6,2565.1,8.062]
[1748241146340,4.00054382,2565.2,2565.1,0.1]
[1748241146546,4.00054382,2565.2,2565.1,8.063]
[1748241147410,4.55054382,2565.2,2565.1,8.063]
[1748241147742,13.0055982,2565.2,2565.1,8.063]
[1748241147930,13.0055982,2565.2,2565.1,0.1]
[1748241148121,13.0055982,2565.2,2565.1,3.991]
[1748241149212,13.37615347,2565.2,2565.1,3.991]
[1748241150112,13.37615347,2565.2,2565.1,0.1]
[1748241153381,15.71215347,2565.2,2565.1,0.1]
[1748241154793,13.37615347,2565.2,2565.1,0.1]
[1748241156871,13.84016844,2565.2,2565.1,0.1]
[1748241158258,23.85016844,2565.2,2565.1,0.1]
[1748241159560,19.38560965,2565.2,2565.1,0.1]
[1748241159750,23.38615347,2565.2,2565.1,0.1]
[1748241160565,24.0048401,2565.2,2565.1,0.1]
[1748241162555,26.3408401,2565.2,2565.1,0.1]
[1748241173138,24.0048401,2565.2,2565.1,0.1]
[1748241173305,23.38615347,2565.2,2565.1,0.1]
[1748241174286,24.0048401,2565.2,2565.1,0.1]
[1748241176413,23.0155982,2565.2,2565.1,0.1]
[1748241177020,23.38830741,2565.2,2565.1,0.1]
[1748241177829,27.28663892,2565.2,2565.1,0.1]
[1748241178001,28.08713892,2565.2,2565.1,0.1]
[1748241178604,30.42313892,2565.2,2565.1,0.1]
[1748241178814,34.42368274,2565.2,2565.1,0.1]
[1748241179601,30.42313892,2565.2,2565.1,0.1]
[1748241180001,8.55,2564.7,2564.4,3.892]
[1748241180357,5.08914382,2564.6,2564.4,3.892]
[1748241180679,8.0,2564.5,2564.4,3.892]
[1748241181529,10.01,2564.7,2564.4,4.3635]
[1748241181742,1.38854973,2564.5,2564.4,4.3635]
[1748241182472,1.78122782,2564.5,2564.4,4.3635]
[1748241182624,1.3153873,2564.5,2564.4,4.3635]
[1748241184162,3.29451008,2564.5,2564.4,4.3635]
[1748241185730,1.3153873,2564.5,2564.4,8.4355]
[1748241189068,0.7653873,2564.5,2564.4,8.4355]
[1748241195568,0.37270921,2564.5,2564.4,8.4355]
[1748241196180,0.37270921,2564.6,2564.4,8.4355]
[1748241196866,0.37270921,2564.7,2564.4,8.4355]
[1748241197603,0.37270921,2564.7,2564.5,0.4715]
[1748241197778,0.37270921,2564.7,2564.6,0.4715]
[1748241197983,0.37270921,2564.7,2564.6,8.4355]
[1748241198293,0.39631511,2564.8,2564.6,8.4355]
[1748241198487,0.37270921,2564.9,2564.6,8.4355]
[1748241199720,0.37270921,2564.8,2564.7,0.4715]
[1748241200011,0.37270921,2564.8,2564.7,4.3635]
[1748241200823,1.95710538,2565.2,2564.8,0.4715]
[1748241200995,1.95710538,2565.2,2565.0,0.4715]
[1748241204796,0.39661323,2565.8,2565.0,0.4715]
[1748241205005,1.13135594,2565.8,2565.0,0.4715]
[1748241208035,1.52468887,2565.8,2565.0,0.4715]
[1748241208401,8.39333293,2565.8,2565.0,0.4715]
[1748241209236,8.39333293,2565.8,2565.2,0.4715]
[1748241211624,10.72933293,2565.8,2565.2,0.4715]
[1748241211941,8.39333293,2565.8,2565.2,0.4715]
[1748241214350,8.0,2566.0,2565.2,0.4715]
[1748241214519,8.0,2566.2,2565.4,0.4715]
[1748241214860,9.33170438,2566.2,2565.6,0.4715]
[1748241216138,9.71192245,2566.2,2565.6,0.4715]
[1748241216632,8.0,2566.0,2565.6,0.4715]
[1748241217538,8.0,2566.0,2565.7,7.96]
[1748241224866,8.0,2566.0,2565.6,0.4715]
[1748241225054,8.0,2566.0,2565.8,7.958]
[1748241226160,8.0,2566.0,2565.6,0.4715]
[1748241226550,8.0,2566.0,2565.7,7.958]
[1748241226760,4.54358361,2565.9,2565.3,0.4715]
[1748241226929,4.54358361,2565.9,2565.4,7.958]
[1748241227462,4.91479492,2565.9,2565.4,7.958]
[1748241227631,4.00054382,2565.7,2565.5,7.958]
[1748241227826,4.00054382,2565.7,2565.6,3.89]
[1748241228056,5.81612331,2565.7,2565.6,3.89]
[1748241228767,0.7741,2565.5,2565.1,3.89]
[1748241228947,4.00054382,2565.4,2565.1,3.89]
[1748241229568,0.37121131,2565.3,2565.1,3.89]
[1748241230173,0.37121131,2565.3,2565.1,4.3615]
[1748241230668,0.37121131,2565.5,2565.1,4.3615]
[1748241230848,1.84101882,2565.5,2565.1,4.3615]
[1748241232382,0.37121131,2565.4,2565.1,4.3615]
[1748241235852,1.84101882,2565.5,2565.1,4.3615]
[1748241237585,1.84101882,2565.5,2565.1,0.4715]
[1748241237899,1.84101882,2565.5,2565.2,3.891]
[1748241238077,1.38415626,2565.4,2565.2,3.891]
[1748241240800,0.55,2565.3,2564.9,0.4715]
[1748241240991,0.55,2565.3,2565.0,7.96]
[1748241241289,0.7521,2565.3,2564.2,0.4715]
[1748241241489,0.7521,2565.3,2564.4,0.4715]
[1748241241683,0.53026438,2565.2,2564.4,0.4715]
[1748241242087,0.53026438,2565.2,2564.5,3.891]
[1748241242467,0.53026438,2565.2,2564.6,3.891]
[1748241243196,0.37121131,2565.4,2564.7,0.4715]
[1748241243555,0.37121131,2565.3,2564.7,0.4715]
[1748241244579,8.37121131,2565.6,2564.7,0.4715]
[1748241244785,0.37121131,2565.6,2564.7,0.4715]
[1748241245461,10.01,2565.7,2564.7,0.4715]
[1748241246472,0.37121131,2565.8,2564.7,0.4715]
[1748241247772,0.37121131,2565.9,2564.7,0.4715]
[1748241248505,1.68435682,2565.9,2564.7,0.4715]
[1748241248870,5.68490064,2565.9,2564.7,0.4715]
[1748241249182,4.37175513,2565.9,2564.7,0.4715]
[1748241249808,4.37175513,2565.9,2564.8,7.959]
[1748241249975,0.55,2565.8,2564.9,4.5395]
[1748241250310,0.55,2565.8,2565.0,3.891]
[1748241250472,0.49217551,2565.7,2565.0,3.891]
[1748241252102,0.49217551,2565.7,2565.1,0.4715]
[1748241252307,0.92121131,2565.8,2565.1,0.4715]
[1748241253380,0.55,2565.8,2565.1,0.4715]
[1748241254522,0.92121131,2565.8,2565.1,0.4715]
[1748241255092,0.92121131,2565.8,2565.2,7.958]
[1748241256831,0.92121131,2565.8,2565.2,4.068]
[1748241256989,4.00054382,2565.5,2565.2,4.068]
[1748241257194,4.55054382,2565.3,2565.2,7.958]
[1748241257837,4.55054382,2565.3,2565.2,4.068]
[1748241257986,12.55054382,2565.3,2565.2,4.068]
[1748241258339,12.92175513,2565.3,2565.2,4.068]
[1748241258635,14.29673064,2565.3,2565.2,4.068]
[1748241259230,14.76257116,2565.3,2565.2,4.068]
[1748241260652,0.55,2565.1,2564.6,0.4715]
[1748241260856,0.55,2565.1,2565.0,7.959]
[1748241261156,4.55054382,2565.1,2565.0,7.959]
[1748241261355,5.22680094,2565.1,2565.0,7.959]
[1748241261736,13.22680094,2565.1,2565.0,7.959]
[1748241262798,13.59801225,2565.1,2565.0,7.959]
[1748241263294,14.37801225,2565.1,2565.0,7.959]
[1748241266985,14.37801225,2565.1,2565.0,4.068]
[1748241267282,14.37801225,2565.1,2565.0,7.959]
[1748241269989,0.55,2564.9,2564.8,3.891]
[1748241270382,0.55,2564.9,2564.6,4.069]
[1748241270582,0.55,2564.9,2564.7,3.891]
[1748241270982,0.55,2564.9,2564.6,4.069]
[1748241270983,0.55,2564.9,2564.8,3.891]
[1748241272298,8.55,2564.9,2564.8,3.891]
[1748241273382,8.9351646,2564.9,2564.8,3.891]
[1748241274712,10.34720657,2564.9,2564.8,3.891]
[1748241275190,0.55,2564.7,2564.6,4.069]
[1748241275374,0.55,2564.7,2564.6,7.961]
[1748241275720,8.55,2564.8,2564.6,7.961]
[1748241276285,8.92121131,2564.8,2564.6,7.961]
[1748241276502,2.02189617,2564.7,2564.6,7.961]
[1748241281011,0.37121131,2564.8,2564.6,8.4325]
[1748241282308,0.8164,2565.2,2564.6,8.4325]
[1748241283312,1.18812586,2565.2,2564.6,8.4325]
[1748241284799,0.37172586,2565.1,2564.6,8.4325]
[1748241285785,4.81694382,2565.2,2564.6,8.4325]
[1748241285786,0.37172586,2565.0,2564.6,8.4325]
[1748241287237,5.28278434,2565.2,2564.6,8.4325]
[1748241287238,0.37172586,2564.9,2564.6,8.4325]
[1748241288146,0.37172586,2564.8,2564.6,8.4325]
[1748241288361,0.37172586,2564.8,2564.6,4.5405]
[1748241288647,0.37172586,2564.8,2564.7,3.892]
[1748241290490,0.37172586,2564.8,2564.4,0.4715]
[1748241290826,0.37172586,2564.8,2564.5,7.96]
[1748241291706,0.37172586,2564.7,2564.5,7.96]
[1748241292526,0.37172586,2564.7,2564.6,3.892]
[1748241292735,0.37172586,2564.7,2564.3,0.4715]
[1748241293025,0.55,2564.6,2564.4,7.96]
[1748241293231,0.89217259,2564.5,2564.4,7.96]
[1748241295141,1.26389845,2564.5,2564.4,7.96]
[1748241296219,1.26389845,2564.5,2564.4,4.068]
[1748241296417,1.26389845,2564.5,2564.4,7.96]
[1748241296617,0.37172586,2564.5,2564.4,7.96]
[1748241297344,0.37172586,2564.5,2564.4,8.4315]
[1748241298107,0.37172586,2564.9,2564.4,7.96]
[1748241298434,0.37172586,2564.9,2564.5,0.4715]
[1748241299141,8.37172586,2565.1,2564.6,4.069]
[1748241299440,8.37172586,2565.1,2564.5,0.4715]
[1748241299441,8.0,2564.9,2564.7,7.961]
[1748241299822,9.3113,2564.9,2564.8,7.961]
[1748241300405,9.68302586,2564.9,2564.8,7.961]
[1748241301653,10.08040647,2564.9,2564.8,7.961]
[1748241302729,0.55,2564.8,2564.7,3.892]
[1748241303045,6.2290456,2564.8,2564.6,4.069]
[1748241303218,6.2290456,2564.8,2564.7,3.892]
[1748241303752,7.06661198,2564.8,2564.7,3.892]
[1748241307754,15.06661198,2564.8,2564.7,3.892]
[1748241310837,0.55,2564.6,2564.1,0.5715]
[1748241311240,2.0566612,2564.6,2564.2,4.068]
[1748241311442,2.0566612,2564.6,2564.3,3.892]
[1748241311827,0.37172586,2564.5,2564.3,3.892]
[1748241312862,2.70772586,2564.5,2564.3,3.892]
[1748241313071,0.37172586,2564.5,2564.3,3.892]
[1748241315967,4.55054382,2564.4,2564.1,0.1]
[1748241316173,12.55054382,2564.2,2564.1,0.1]
[1748241317076,8.92172586,2564.2,2564.1,0.1]
[1748241318233,12.92226968,2564.2,2564.1,0.1]
[1748241318437,14.5716707,2564.2,2564.1,0.1]
[1748241320266,15.3714707,2564.2,2564.1,0.1]
[1748241321261,25.3814707,2564.2,2564.1,0.1]
[1748241322578,25.84731122,2564.2,2564.1,0.1]
[1748241323079,28.18331122,2564.2,2564.1,0.1]
[1748241324082,32.08316302,2564.2,2564.1,0.1]
[1748241324379,28.18331122,2564.2,2564.1,0.1]
[1748241324939,27.7174707,2564.2,2564.1,0.1]
[1748241326874,25.3814707,2564.2,2564.1,0.1]
[1748241328274,20.83092688,2564.2,2564.1,0.1]
[1748241328482,21.38092688,2564.2,2564.1,0.1]
[1748241329440,20.58112688,2564.2,2564.1,0.1]
[1748241329670,8.55,2564.1,2563.8,4.5395]
[1748241330485,8.92172586,2564.1,2563.8,4.5395]
[1748241330655,8.37172586,2564.1,2563.8,4.5395]
[1748241330850,0.37172586,2564.1,2563.8,4.5395]
[1748241331783,1.95710538,2564.3,2563.8,4.5395]
[1748241332145,1.95710538,2564.3,2563.9,0.4715]
[1748241332382,1.95710538,2564.3,2564.0,3.893]
[1748241332581,12.80244387,2564.7,2564.1,0.4715]
[1748241332780,0.37172586,2564.6,2564.1,0.51049787]
[1748241333086,0.37172586,2564.6,2564.1,0.4715]
[1748241333974,1.95710538,2564.7,2564.1,0.4715]
[1748241335672,1.95710538,2564.7,2564.1,0.51049062]
[1748241335989,1.95710538,2564.7,2564.1,0.4715]
[1748241336769,0.37172586,2565.1,2564.1,0.4715]
[1748241336973,0.55,2565.2,2564.1,0.4715]
[1748241340462,8.37172586,2565.3,2564.1,0.4715]
[1748241340662,8.37172586,2565.3,2564.1,0.51048672]
[1748241340862,8.37172586,2565.3,2564.3,0.4715]
[1748241341063,4.00054382,2565.2,2564.3,0.4715]
[1748241342099,4.00054382,2565.0,2564.3,0.4715]
[1748241342320,4.00054382,2565.0,2564.4,7.963]
[1748241342796,1.3626,2565.1,2564.4,7.963]
[1748241342979,0.55,2565.1,2564.5,0.4715]
[1748241343363,0.37085676,2565.2,2564.5,0.4715]
[1748241344501,4.37140058,2565.2,2564.5,0.4715]
[1748241344816,4.00054382,2565.2,2564.5,0.4715]
[1748241349428,4.00054382,2565.2,2564.6,3.892]
[1748241349583,4.00054382,2565.2,2564.7,0.4715]
[1748241351412,6.2798282,2565.2,2564.7,0.4715]
[1748241355892,6.2798282,2565.2,2564.8,3.892]
[1748241356082,6.65092877,2565.2,2564.8,3.892]
[1748241358106,6.65092877,2565.2,2564.9,4.07]
[1748241361095,8.37110057,2565.1,2564.9,4.07]
[1748241361298,10.68255471,2565.1,2564.9,4.07]
[1748241361597,8.37110057,2565.1,2565.0,0.4715]
[1748241361912,0.37110057,2565.1,2565.0,0.4715]
[1748241366540,0.37110057,2565.1,2564.9,4.07]
[1748241366848,12.00054382,2565.0,2564.9,4.07]
[1748241367052,8.0,2564.9,2563.9,0.4715]
[1748241367263,1.25505438,2564.8,2564.1,0.4715]
[1748241367540,4.55054382,2565.0,2564.1,0.4715]
[1748241367746,5.38525702,2565.0,2564.1,0.4715]
[1748241368828,0.37110057,2564.9,2564.1,0.4715]
[1748241369770,0.37110057,2564.9,2564.2,7.958]
[1748241370058,0.37110057,2564.8,2564.3,7.958]
[1748241370274,0.94787827,2564.8,2564.3,7.958]